Cogmind - Beta 16 @@@ ROGUE MODE // 2025.11.18 @ 18:34:45 Player: beans Result: Destroyed by B-75 Beast with Heavy Machine Gun Performance ------------- Evolutions (2) 1000 Regions Visited (4) 800 Robots Destroyed (131) 655 Value Destroyed (3919) 3919 Prototype IDs (5) 100 Alien Tech Used (0) 0 Bonus (1294) 1294 TOTAL SCORE: 7768 Bonus ------- High Alert Combat Kills 594 Entered Garrisons 200 Used RIF Installer 500 Cogmind --------- Core Integrity 0/550 Matter 176/300 Energy 100/100 System Corruption 3% Temperature Cool (12) Movement Core (200) Ox3 Location -8/Garrison Parts ------- > --- POWER (1) -------- (None) > --- PROPULSION (2) --- (None) > --- UTILITY (5) ------ Visual Processing Unit Enhanced Optical Array Targeting Computer Authchip [Processor] > --- WEAPON (3) ------- Missile Launcher Missile Launcher > --- INVENTORY (5) ---- Heavy Ion Engine Flak Gun Plasma Cutter Peak State ------------ > --- POWER ------------ Heavy Ion Engine > --- PROPULSION ------- Advanced Treads Advanced Treads > --- UTILITY ---------- Improved Heat Sink Visual Processing Unit Targeting Computer Recoil Stabilizer Authchip [Processor] > --- WEAPON ----------- Flak Gun Flak Gun Flak Gun > --- INVENTORY -------- Flak Cannon Flak Cannon Missile Launcher Missile Launcher Plasma Cutter [Rating: 35] Favorites ----------- Power Heavy Ion Engine Engine Heavy Ion Engine Power Core Light Nuclear Core Propulsion Light Treads Treads Light Treads Hover Unit Aerolev Unit Utility Visual Processing Unit Device Improved Heat Sink Processor Visual Processing Unit Hackware Authchip [Processor] Protection Medium Reactive Plating Weapon Flak Cannon Energy Gun Beam Rifle Ballistic Gun Flak Gun Ballistic Cannon Flak Cannon Launcher Missile Launcher Special Weapon Plasma Cutter Build | -11 -10 -9 -8 -8 ------- Run | Yrd Mat Mat Mat Gar Slots Evolved 4 | . . 2 2 . Power . | . . . . . Propulsion . | . . . . . Utility 3 | . . 1 2 . Weapon 1 | . . 1 . . Parts Attached 46 | 5 5 16 10 10 Power 5 | 1 1 2 1 . Engine 4 | 1 . 2 1 . Core 1 | . 1 . . . Reactor . | . . . . . Propulsion 10 | 2 . 2 4 2 Treads 9 | 2 . 2 3 2 Leg . | . . . . . Wheel . | . . . . . Hover 1 | . . . 1 . Flight . | . . . . . Utility 9 | . 2 2 2 3 Device 3 | . 1 2 . . Storage . | . . . . . Processor 3 | . 1 . 1 1 Hackware 1 | . . . 1 . Protection 2 | . . . . 2 Artifact . | . . . . . Weapon 22 | 2 2 10 3 5 Energy Gun 4 | . . 3 . 1 Energy Cannon . | . . . . . Ballistic Gun 11 | 2 2 3 3 1 Ballistic Cannon 4 | . . 4 . . Launcher 2 | . . . . 2 Special Weapon 1 | . . . . 1 Impact Weapon . | . . . . . Slashing Weapon . | . . . . . Piercing Weapon . | . . . . . Special Melee Weapon . | . . . . . Unidentified Prototypes 5 | . . 3 2 . Parts Lost 14 | . . 1 . 13 Power 1 | . . 1 . . Propulsion 4 | . . . . 4 Utility 4 | . . . . 4 Weapon 5 | . . . . 5 Highest Loss Streak 2 | . . 1 . 2 To Critical Strikes . | . . . . . Average Backups 4 | . 3 4 5 4 Power . | . . . . . Propulsion . | . . . . . Utility . | . . 1 . . Weapon 3 | . 2 2 3 3 Tool/Special . | . . . . . Unused Backups 3 | . 2 1 . . Power . | . . . . . Propulsion . | . . . . . Utility . | . . . . . Weapon 3 | . 2 1 . . Tool/Special . | . . . . . Average Slot Usage (%) 91 | . 89 98 92 88 Engine 7 | . 7 4 9 8 Core 2 | . 6 5 . . Treads 18 | . 28 21 17 14 Device 12 | . 9 22 18 5 Processor 16 | . 9 11 15 20 Hackware 5 | . . . 5 9 Protection 3 | . . . . 6 Energy Gun 3 | . . 9 . . Ballistic Gun 11 | . 28 2 19 9 Ballistic Cannon 11 | . . 20 7 10 Peak Build Rating 35 | 5 12 23 35 35 Average Rating 23 | 3 8 21 28 27 On Entrance 14 | . 5 11 23 35 Avg Prop Armor Cover (%) . | . . . . . Naked Turns . | . . . . . Heaviest Build 47 | 7 11 27 27 47 Greatest Support 45 | 40 40 43 45 44 Greatest Overweight (x) 3 | . . 1 1 3 Average Overweight (x) . | . . . . . Largest Inventory Capacity 5 | 5 5 5 5 5 Average Capacity 5 | 5 5 5 5 5 Most Carried 5 | 5 5 5 5 5 Average Carried 4 | . 3 4 4 4 Final Capacity 5 | 5 5 5 5 5 Final Carried 5 | . 5 5 5 3 Class Distribution -------------------- 58% | Gunner 28% | Mutant 4% | Scavenger-Tank 3% | Tank 3% | Scavenger-Gunner Dominant Class ---------------- Mutant | -10/Materials Gunner | -9/Materials Gunner | -8/Materials Gunner | -8/Garrison Resources | -11 -10 -9 -8 -8 ----------- Run | Yrd Mat Mat Mat Gar Matter Collected 3758 | 172 211 980 1005 1390 Remotely . | . . . . . Salvage Created 3866 | . 304 1295 1168 1099 Parts 227 | . 23 91 53 60 Haulers Intercepted 12 | . 2 5 5 . Recyclers Shooed 3 | . . 2 1 . Parts Field Recycled . | . . . . . Retrieved Matter . | . . . . . Parts Self-Destructed . | . . . . . Prevented . | . . . . . Parts Restored . | . . . . . Kills | -11 -10 -9 -8 -8 ------- Run | Yrd Mat Mat Mat Gar Combat Hostiles Destroyed 84 | . 7 26 15 36 Guns 40 | . 7 12 9 12 Cannons 39 | . . 14 6 19 AOE 5 | . . . . 5 Classes Destroyed 16 | . 4 6 4 2 Worker 14 | . 1 10 3 . Builder 3 | . . 1 2 . Tunneler 3 | . . 1 2 . Hauler 12 | . 2 5 5 . Recycler 6 | . . 1 5 . Operator 1 | . . . 1 . Watcher 8 | . . 5 3 . Swarmer 15 | . 5 7 . 3 Grunt 41 | . 2 12 8 19 Brawler 3 | . . 1 1 1 Duelist 2 | . . . 1 1 Protector 1 | . . . . 1 Sentry 16 | . . 6 2 8 Demolisher 1 | . . . . 1 Hunter 4 | . . . 2 2 Heavy 1 | . . . 1 . Best Kill Streak 8 | . 4 8 8 5 Combat Bots Only 5 | . 4 5 3 5 Max Kills in Single Turn 2 | . 1 2 2 2 Gunslinging 1 | . . 1 . 1 Exploded 2 | . . . . 2 Melee . | . . . . . Uniques/NPCs Destroyed . | . . . . . Combat | -11 -10 -9 -8 -8 -------- Run | Yrd Mat Mat Mat Gar Hostile Shots Fired 313 | . 52 58 49 154 Missed 88 | . 14 18 18 38 Hits 225 | . 38 40 31 116 Projectile 225 | . 38 40 31 116 AOE 3 | . . . . 3 Critical Strikes 6 | . . . 1 5 Damage Taken 3489 | . 322 481 652 2034 Core 691 | . 68 62 161 400 Absorbed by Shields 56 | . 42 14 . . Ignored by Resistances 33 | . . . . 33 Core Remaining (%) 85 | 100 72 84 . . Volleys Fired 271 | 1 36 80 58 96 Largest 3 | 2 2 3 3 3 Hottest 168 | 40 40 168 111 102 Shots Fired 677 | 2 72 211 174 218 Gun 410 | 2 72 105 120 111 Cannon 249 | . . 106 54 89 Launcher 17 | . . . . 17 Special 1 | . . . . 1 Kinetic 562 | 2 72 123 174 191 Thermal 98 | . . 88 . 10 Explosive 17 | . . . . 17 Electromagnetic . | . . . . . Robot Hit Streak 16 | 1 8 16 10 14 Robot Miss Streak 9 | 1 5 6 9 7 Penetration Max 1 | . . . . 1 Secondary Targets 7 | . 1 3 . 3 Max Gunslinging Chain 1 | . 1 1 . 1 Shots Hit Robots 457 | 1 44 122 136 154 Core Hits 466 | . 17 104 155 190 Critical Kills . | . . . . . Critical Parts Destroyed 2 | . 1 . . 1 Critical Strikes 5 | . 1 3 . 1 Burn 3 | . . 3 . . Destroy 2 | . 1 . . 1 Melee Attacks . | . . . . . Impact . | . . . . . Slashing . | . . . . . Piercing . | . . . . . Sneak Attacks . | . . . . . Combat Hostiles . | . . . . . Follow-up Attacks . | . . . . . Damage Inflicted 9275 | 9 519 2138 2446 4163 Guns 4133 | 9 519 948 1557 1100 Cannons 3376 | . . 1165 889 1322 Explosions 1735 | . . 25 . 1710 Melee . | . . . . . Ramming 31 | . . . . 31 Kinetic 6628 | 9 519 1297 2446 2357 Thermal 881 | . . 816 . 65 Explosive 1710 | . . . . 1710 Electromagnetic 25 | . . 25 . . Impact . | . . . . . Slashing . | . . . . . Piercing . | . . . . . Highest Corruption 3 | . . . 3 3 Average Corruption 2 | . . . 2 3 Corruption Purged . | . . . . . Corruption Blocked . | . . . . . Effects 48 | . . . 1 47 Message Errors 11 | . . . . 11 Matter Fused 12 | . . . 1 11 Heat Flow Errors 3 | . . . . 3 Energy Discharges 8 | . . . . 8 Parts Fused 1 | . . . . 1 Data Loss (minor) 4 | . . . . 4 Data Loss (major) 1 | . . . . 1 Misfires 3 | . . . . 3 Alerts 5 | . . . . 5 Overload Shots . | . . . . . Overflow Damage 34 | . . . . 34 Projectiles 4 | . . . . 4 Explosions 30 | . . . . 30 Melee . | . . . . . Knockbacks 42 | . . 10 12 20 Impact . | . . . . . Kinetic 41 | . . 10 11 20 Secondary 1 | . . . 1 . Self-Inflicted Damage 142 | . . 80 . 62 Shots 3 | . . 2 . 1 Rammed 10 | . . . . 10 Targets Rammed 10 | . . . . 10 Kicked . | . . . . . Crushed . | . . . . . Highest Temperature 367 | . . 367 21 289 Average Temperature 59 | . . 35 9 88 Received Heat Transfer 979 | . 24 100 171 684 Siege Activations . | . . . . . Martial Activations . | . . . . . Shielding Activations . | . . . . . Robots Disrupted . | . . . . . Combat Hostiles . | . . . . . Robots Corrupted . | . . . . . Combat Hostiles . | . . . . . Parts Fried . | . . . . . Impact Corruptions . | . . . . . Robots Melted . | . . . . . Combat Hostiles . | . . . . . Parts Melted 6 | . . 6 . . Heat Transferred 2442 | . . 2294 . 148 Parts Sabotaged . | . . . . . Parts Stolen . | . . . . . Parts Stripped . | . . . . . Power Chain Reactions 1 | . . 1 . . Alert | -11 -10 -9 -8 -8 ------- Run | Yrd Mat Mat Mat Gar Maximum Alert Level 5 | . . 2 1 5 Low Security (%) 29 | 100 100 63 5 . Level 1 26 | . . 34 94 10 Level 2 8 | . . 2 . 15 Level 3 16 | . . . . 33 Level 4 17 | . . . . 35 Level 5 2 | . . . . 5 High Security . | . . . . . Max Security . | . . . . . Peak Influence 1792 | . 90 421 367 1792 Initial 233 | . . . 176 233 Average 559 | . 24 155 275 985 Influence Increases 3245 | . 189 866 501 1689 Destroy 0b10 Robot/C 1660 | . 140 520 300 700 Destroy 0b10 Robot/NC 250 | . 15 115 105 15 Destroy Leader 330 | . 34 160 96 40 Successful Hack 14 | . . . . 14 Disable Machine 45 | . . 30 . 15 Anti-Garrison Action 700 | . . . . 700 Destroy Structure 171 | . . 11 . 160 Lose Combat Pursuer 75 | . . 30 . 45 Influence Decreases 1453 | . 189 449 559 256 Entered New Map 367 | . . . 241 126 Time Decay 946 | . 189 439 318 . Lost Part 140 | . . 10 . 130 Squads Dispatched 8 | . 1 4 3 . Investigation 1 | . . 1 . . Extermination . | . . . . . Reinforcement 6 | . 1 3 2 . Assault . | . . . . . Garrison 1 | . . . 1 . Intercept . | . . . . . Searches Triggered . | . . . . . Construction Impeded . | . . . . . Haulers Reinforced . | . . . . . Active Scanning Responses . | . . . . . Cargo Convoy Interrupts . | . . . . . Stealth | -11 -10 -9 -8 -8 --------- Run | Yrd Mat Mat Mat Gar Distress Signals 2 | . . 2 . . Communications Jammed . | . . . . . Distress Signals . | . . . . . Times Spotted 108 | . 10 37 21 40 Peak Tracking Total 5 | . 4 4 3 5 Tactical Retreats 3 | . . 1 . 2 Traps | -11 -10 -9 -8 -8 ------- Run | Yrd Mat Mat Mat Gar Traps Triggered 11 | . 1 1 2 7 Indirectly . | . . . . . Trap Hack Attempts . | . . . . . Triggered . | . . . . . Disarmed . | . . . . . Reprogrammed . | . . . . . Reused . | . . . . . Traps Extracted . | . . . . . Installed . | . . . . . Triggered . | . . . . . Machines | -11 -10 -9 -8 -8 ---------- Run | Yrd Mat Mat Mat Gar Machines Disabled 8 | . . 3 . 5 Max in Single Turn 2 | . . 2 . 2 Phase Generator 1 | . . . . 1 Machines Repaired . | . . . . . Machines Dismantled 1 | . . . . 1 Machines Sabotaged . | . . . . . Overloaded Fab Kills . | . . . . . Hacking | -11 -10 -9 -8 -8 --------- Run | Yrd Mat Mat Mat Gar Machines Accessed 3 | . . 1 1 1 Terminals 1 | . . . . 1 Fabricators . | . . . . . Repair Stations . | . . . . . Recycling Units 1 | . . 1 . . Scanalyzers . | . . . . . Garrison Access 1 | . . . 1 . Total Hacks 3 | . . 1 1 1 Successful 3 | . . 1 1 1 Failed . | . . . . . Catastrophic . | . . . . . Database Lockouts . | . . . . . Manual . | . . . . . Terminals 1 | . . . . 1 Fabricators . | . . . . . Repair Stations . | . . . . . Recycling Units 1 | . . 1 . . Scanalyzers . | . . . . . Garrison Access 1 | . . . 1 . Terminal Hacks 1 | . . . . 1 Garrison Registry 1 | . . . . 1 Fabricator Hacks . | . . . . . Repair Station Hacks . | . . . . . Recycling Unit Hacks 1 | . . 1 . . Retrieve Components 1 | . . 1 . . Scanalyzer . | . . . . . Garrison Access Hacks 1 | . . . 1 . Unlock Access 1 | . . . 1 . Unauthorized Hacks . | . . . . . Terminals . | . . . . . Fabricators . | . . . . . Repair Stations . | . . . . . Recycling Units . | . . . . . Scanalyzers . | . . . . . Garrison Access . | . . . . . Data Cores Recovered . | . . . . . Used . | . . . . . Hacking Detections 1 | . . . . 1 Full Trace Events . | . . . . . Feedback Events . | . . . . . Feedback Blocked . | . . . . . Robot Schematics Acquired . | . . . . . Robots Built . | . . . . . Authchips . | . . . . . Time . | . . . . . Total Robot Build Rating . | . . . . . Part Schematics Acquired . | . . . . . Parts Built . | . . . . . Authchips . | . . . . . Time . | . . . . . Total Part Build Rating . | . . . . . Part Studies Acquired . | . . . . . Parts Repaired . | . . . . . Time . | . . . . . Parts Recycled . | . . . . . Recycled Matter . | . . . . . Retrieved Matter . | . . . . . Retrieved Components 1 | . . 1 . . Parts Scanalyzed . | . . . . . Part Schematics Acquired . | . . . . . Parts Damaged . | . . . . . Bothacking | -11 -10 -9 -8 -8 ------------ Run | Yrd Mat Mat Mat Gar Used RIF Installer 1 | . . . . 1 Robots Hacked . | . . . . . Non-combat . | . . . . . Combat . | . . . . . Robot Hacks Applied . | . . . . . Relay Couplers Released . | . . . . . Fabnet Peak Effective % . | . . . . . Robots Rewired . | . . . . . Allies Hacked . | . . . . . Hacks Repelled . | . . . . . Allies | -11 -10 -9 -8 -8 -------- Run | Yrd Mat Mat Mat Gar Total Allies . | . . . . . Largest Group . | . . . . . Highest-Rated Group . | . . . . . Highest-Rated Ally . | . . . . . Total Orders . | . . . . . Ally Attacks . | . . . . . Total Damage . | . . . . . Kills . | . . . . . Allies Corrupted . | . . . . . Allies Melted . | . . . . . Intel | -11 -10 -9 -8 -8 ------- Run | Yrd Mat Mat Mat Gar Active Infowar (turns) 4985 | . 377 1348 709 2551 Optics 4985 | . 377 1348 709 2551 Robot Analysis Total . | . . . . . Derelict Logs Recovered . | . . . . . Drone Launches . | . . . . . Drone Recoveries . | . . . . . Exploration | -11 -10 -9 -8 -8 ------------- Run | Yrd Mat Mat Mat Gar Turns Passed 5240 | 53 579 1348 709 2551 Spaces Moved 2384 | 34 286 644 302 1118 Core 32 | 12 . . . 20 Treads 2352 | 22 286 644 302 1098 Legs . | . . . . . Wheels . | . . . . . Hover . | . . . . . Flight . | . . . . . Fastest Speed 50 | 50 160 160 145 145 Average Speed 170 | 121 160 160 158 184 Slowest Speed 320 | 160 160 240 240 320 Overloaded Moves . | . . . . . Propulsion Burnouts . | . . . . . Robots Hopped . | . . . . . Potential Cave-ins . | . . . . . Cave-ins Triggered . | . . . . . Exploration Rate (%) 51 | 4 52 75 35 91 Regions Visited 4 Branch Regions . Pre-discovered Areas . | . . . . . Known Exits Taken 1 | . . . 1 . Unknown Exits Taken 3 | 1 1 1 . . Scrap Searched . | . . . . . Spaces Dug 4 | . . . . 4 Terrain Destroyed 221 | . . 6 . 215 Melee . | . . . . . Projectile . | . . . . . AOE 221 | . . 6 . 215 Terrain Rammed . | . . . . . Walls Destroyed . | . . . . . Machines Disabled . | . . . . . Actions | -11 -10 -9 -8 -8 --------- Run | Yrd Mat Mat Mat Gar Total 2955 | 44 343 786 401 1381 Wait 146 | . 1 19 13 113 Move 2381 | 33 285 643 302 1118 Hop . | . . . . . Pick Up 28 | 5 11 8 4 . Fast Attach 26 | . . 9 9 8 Attach 17 | 5 2 3 1 6 Detach 5 | . . 1 . 4 Swap 27 | . 3 9 3 12 Drop 32 | . 5 14 11 2 Fire 271 | 1 36 80 58 96 Melee . | . . . . . Ram . | . . . . . Kick . | . . . . . Crush 10 | . . . . 10 Escape Stasis . | . . . . . Rewire . | . . . . . Trap . | . . . . . Miscellaneous 12 | . . . . 12 Route ------- -11/Scrapyard -10/Materials (discovered 2 exits: *Mat x2) -9/Materials (discovered 4 exits: *Mat x3 / [*Min]) -8/Materials -8/Garrison (discovered 3 exits: [*Fac x3]) History --------- Turn | Location | Event 19 | -11/Scrapyard | Discovered new exit (range 15) 54 | -11/Scrapyard | Entered Materials 317 | -10/Materials | Build established: Mutant 438 | -10/Materials | Discovered new exit (range 18) 580 | -10/Materials | Discovered new exit (range 5) 633 | -10/Materials | Entered another Materials area 633 | -9/Materials | Evolved 2 slots: Utility x1, Weapon x1 892 | -9/Materials | Discovered new exit (range 7) 1088 | -9/Materials | Discovered new exit (range 17) 1127 | -9/Materials | Build established: Gunner 1534 | -9/Materials | Discovered new exit (range 13) 1947 | -9/Materials | Discovered new exit (range 18) 1981 | -9/Materials | Entered another Materials area 1981 | -8/Materials | Evolved 2 slots: Utility x2 2598 | -8/Materials | Garrison activated, responded to threat 2690 | -8/Materials | Identified exit to Garrison 2690 | -8/Materials | Entered Garrison 2709 | -8/Garrison | Triggered checkpoint 2756 | -8/Garrison | Triggered checkpoint 3068 | -8/Garrison | Installed Relay Interface Framework 3168 | -8/Garrison | Triggered checkpoint 3186 | -8/Garrison | Core integrity fell below 50% 3348 | -8/Garrison | Phase Generator disabled 3441 | -8/Garrison | Triggered checkpoint 3548 | -8/Garrison | Triggered checkpoint 3687 | -8/Garrison | Discovered new exit (range 12) 3776 | -8/Garrison | Triggered checkpoint 4179 | -8/Garrison | Triggered checkpoint 4596 | -8/Garrison | Build established: Mutant 4658 | -8/Garrison | Discovered new exit (range 11) 4902 | -8/Garrison | Discovered new exit (range 60) 4902 | -8/Garrison | Discovered new exit (range 30) 4902 | -8/Garrison | Discovered new exit (range 52) 5150 | -8/Garrison | Spotted B-75 Beast 5198 | -8/Garrison | Core integrity fell below 20% 5241 | -8/Garrison | Destroyed by B-75 Beast with Heavy Machine Gun Last Messages --------------- Extracted 150 matter. Extracted 88 matter. System corrupted: Matter fused (-9). Y-45 Defender destroyed. System corrupted: Energy discharge (-112). Acquired 45 matter. ALERT: Garrison interior compromised. System corrupted: Flak Cannon fused. Triggered Alarm Trap. An alarm sounds. Flak Gun destroyed. Discarded Flak Cannon. System corrupted: Matter fused (-6). N,MDM>YA#DBM&:Q<2WM56O%DPDP Z1I YI Lgt. Treads destroyed. Med. Reactive Plating destroyed. Knocked back. Acquired 7 matter. Knocked back. ALERT: Garrison interior compromised. Map ----- +----------------------------------------------------+ | ????????????# * ## #?# #????????????????????????? | | ????????????##!### #?# #????????????????????????? | | ?????????????# #?# #?# ^#????????????????????????? | | ?###?????????# #?# #?# #????????????????????????? | | ## ########### ### ### #####????????????????????? | | [ * #????????????????????? | | ##???????????????????? | | T#?????############### | | ## ########### ### ### ##?????# | | ?# #?????????# #?# #?### ##?????# | | ?# #?????????# #?# #???? #?????# | | ?# #?????????# ##" ## ?????# ####### ## | | ?# #???###???# BB #?????# #?????# #? | | ?# #???#*#???# #""### BB #??#### ####### #? | | ?# #?###%##### # #?????? ???# #? | | ?# #?#//=!!### #?????? ???# ## ####### #? | | ?# #?#//[!! #?????? #### ## #?????# #? | | ?# ### ## [ ##??????# ## ##^^^#?????# #? | | ?# +^ ##??????# ## ## #?????# #? | | ?##### [ # #=########## ####### #? | | ?????#!! ]]###% #? | | ?????#! ]]# # ### #### #? | | ?????###=##### ###?# #??# ## ## ##########? | | ???????# #???###???# #### ## ## ###???????? | | ???????###?????????# #???????? | | ???????????????????####C @ #???????? | | ??????????????????????# * % #???????? | | ??############????????#C #???????? | | ??#""""""""""#????????### ## ## ###???????? | | ??#"""!!!!!!"########### ## ## ########### | | ??#"" + = ^^ | | ??#"! + = * / = ^^ " | | ??#"! ## ### ## = = ######## # | | ??#"! ## #?# ##### ## # ## #??????# # | | ??#"! ## #?# #???# ## #### #??????# # | | ??#"" ## #?# #???# #######?## #??????# # | | ??#"""!!!!!!"## ### ##### #???????#" #??????# # | | ??#""""""""""## ## ^^#???????#" #??????# # | | ??############# ## ######^^#???????#" #??????# # | | ?????########## ## ###### #???????#" #??????# # | | ?????# #???????#"##??????# # | | ?????# #???????###???????# # | | ?????# ####### ### ###### ##?????????????????# # | | ?????# #?????# #?# #????# #??????????????????# # | | ?????# #?????# #?# #????# #??????????????????# # | | ?????# #?????# #?# #????# #????????########### # | | ?????# #?????# ### #????# #????????# # | | ?????# #?????# #????# #????????# ##### ### # | | ?????# #?????##### #????# #????????# #??## ### # | | ?????# #?????????#[#????# #????????# #??# ## # | +----------------------------------------------------+ Best States ------------- Heat Dissipation 45 Energy Generation 14 Energy Capacity 280 Matter Stores 300 Matter Capacity 300 Sight Range 22 Terrain Scan Density 10 Armor Coverage 375 Resistance: KI 30 Evasion (%) 50 Targeting Accuracy 5 Recoil Reduction 6 Authchip Count 1 Item Schematics ----------------- None Robot Schematics ------------------ None Fabricated ------------ Nothing Repaired ---------- Nothing Studied --------- None Alien Tech Used ----------------- None Achievements -------------- None Challenges ------------ None Game ------ Seed PotentialBombardmentFirepult Manual? 0 Play Time 00:33:04 Cumulative 215.6 hours Start 2025.11.16 @ 12:50:57 End 2025.11.18 @ 18:34:45 Sessions 1 Manual Loads 0 Difficulty Rogue Special Mode None Game No. 612 Rogue 611 Adventurer 1 Explorer 0 Win Type - Total 0 Types 0/0/0/0/0/0/0/0/0/0 Lore% 65 Gallery% 62 Achievement% 38 Wizard Run 0 Options --------- Layout 1 ASCII 0 Keyboard 0 Movement Mouse Keybinds 0 Fullscreen 1 Font 24/Smallcaps Map View 50x35 Zoom Use 0% Tactical HUD 0 Map Filters NONE Filters NONE Steam 1 RUN: c49b1a07-76fc-4479-bbc7-0123d80212f8